Workbook

Sheet СМЕТА
A3: Наименование работ | B3: Помещения | C3: Кол-во | D3: Ед.изм. | E3: Цена за ед работы | F3: Цена за ед мат-ла | G3: Работа | H3: Материал | I3: Всего, руб.
A5: Этап №1
A6: Устройство дверного проема 1 | C6: 3 | D6: компл. | E6: 800 | F6: 0 | G6: =ROUND(PRODUCT(C6:E6),0) -> 2400 | H6: =ROUND(PRODUCT(C6,F6),0) -> 0 | I6: =SUM(G6:H6) -> 2400
A7: Устройство дверного проема 2 | C7: 4 | D7: компл. | E7: 800 | F7: 0 | G7: =ROUND(PRODUCT(C7:E7),0) -> 3200 | H7: =ROUND(PRODUCT(C7,F7),0) -> 0 | I7: =SUM(G7:H7) -> 3200
A8: Устройство дверного проема 3 | C8: 5 | D8: компл. | E8: 800 | F8: 0 | G8: =ROUND(PRODUCT(C8:E8),0) -> 4000 | H8: =ROUND(PRODUCT(C8,F8),0) -> 0 | I8: =SUM(G8:H8) -> 4000
A9: Устройство дверного проема 4 | C9: 6 | D9: компл. | E9: 800 | F9: 0 | G9: =ROUND(PRODUCT(C9:E9),0) -> 4800 | H9: =ROUND(PRODUCT(C9,F9),0) -> 0 | I9: =SUM(G9:H9) -> 4800
A10: Устройство дверного проема 5 | C10: 7 | D10: компл. | E10: 800 | F10: 0 | G10: =ROUND(PRODUCT(C10:E10),0) -> 5600 | H10: =ROUND(PRODUCT(C10,F10),0) -> 0 | I10: =SUM(G10:H10) -> 5600
A11: Устройство дверного проема 6 | C11: 8 | D11: компл. | E11: 800 | F11: 0 | G11: =ROUND(PRODUCT(C11:E11),0) -> 6400 | H11: =ROUND(PRODUCT(C11,F11),0) -> 0 | I11: =SUM(G11:H11) -> 6400
A12: Устройство дверного проема 7 | C12: 9 | D12: компл. | E12: 800 | F12: 0 | G12: =ROUND(PRODUCT(C12:E12),0) -> 7200 | H12: =ROUND(PRODUCT(C12,F12),0) -> 0 | I12: =SUM(G12:H12) -> 7200
A13: Устройство дверного проема 8 | C13: 10 | D13: компл. | E13: 800 | F13: 0 | G13: =ROUND(PRODUCT(C13:E13),0) -> 8000 | H13: =ROUND(PRODUCT(C13,F13),0) -> 0 | I13: =SUM(G13:H13) -> 8000
A14: Итого (этап №2): | G14: =ROUND(SUMPRODUCT(C6:C14,E6:E14),0) -> 41600 | H14: =ROUND(SUMPRODUCT(C6:C14,F6:F14),0) -> 0
A16: Этап №2
A17: Снятие обоев 1 | C17: 1 | D17: кв.м. | E17: 40 | F17: 0 | G17: =ROUND(PRODUCT(C17:E17),0) -> 40 | H17: =ROUND(PRODUCT(C17,F17),0) -> 0 | I17: =SUM(G17:H17) -> 40
A18: Снятие обоев 2 | C18: 2 | D18: кв.м. | E18: 40 | F18: 0 | G18: =ROUND(PRODUCT(C18:E18),0) -> 80 | H18: =ROUND(PRODUCT(C18,F18),0) -> 0 | I18: =SUM(G18:H18) -> 80
A19: Снятие обоев 3 | C19: 3 | D19: кв.м. | E19: 40 | F19: 0 | G19: =ROUND(PRODUCT(C19:E19),0) -> 120 | H19: =ROUND(PRODUCT(C19,F19),0) -> 0 | I19: =SUM(G19:H19) -> 120
A20: Снятие обоев 4 | C20: 4 | D20: кв.м. | E20: 40 | F20: 0 | G20: =ROUND(PRODUCT(C20:E20),0) -> 160 | H20: =ROUND(PRODUCT(C20,F20),0) -> 0 | I20: =SUM(G20:H20) -> 160
A21: Снятие обоев 5 | C21: 5 | D21: кв.м. | E21: 40 | F21: 0 | G21: =ROUND(PRODUCT(C21:E21),0) -> 200 | H21: =ROUND(PRODUCT(C21,F21),0) -> 0 | I21: =SUM(G21:H21) -> 200
A22: Снятие обоев 6 | C22: 6 | D22: кв.м. | E22: 40 | F22: 0 | G22: =ROUND(PRODUCT(C22:E22),0) -> 240 | H22: =ROUND(PRODUCT(C22,F22),0) -> 0 | I22: =SUM(G22:H22) -> 240
A23: Итого (этап №1): | G23: =ROUND(SUMPRODUCT(C17:C23,E17:E23),0) -> 840 | H23: =ROUND(SUMPRODUCT(C17:C23,F17:F23),0) -> 0
A25: Этап №3
A26: Поклейка обоев | C26: 50 | D26: кв.м. | E26: 250 | F26: 0 | G26: =ROUND(PRODUCT(C26:E26),0) -> 12500 | H26: =ROUND(PRODUCT(C26,F26),0) -> 0 | I26: =SUM(G26:H26) -> 12500
A27: Итого (этап №3): | G27: =ROUND(SUMPRODUCT(C26:C27,E26:E27),0) -> 12500 | H27: =ROUND(SUMPRODUCT(C26:C27,F26:F27),0) -> 0
A29: Этап №4
G30: =ROUND(PRODUCT(C30:E30),0) -> 0 | H30: =ROUND(PRODUCT(C30,F30),0) -> 0 | I30: =SUM(G30:H30) -> 0
A31: Итого (этап №4): | G31: =ROUND(SUMPRODUCT(C30:C31,E30:E31),0) -> 0 | H31: =ROUND(SUMPRODUCT(C30:C31,F30:F31),0) -> 0
A33: Итого на работу: | G33: =IFERROR(#REF!-INDEX($A$1:$I$507,MATCH("Скидка:",$A$1:$A$507,0),7),#REF!) -> 
A34: Итого на материал: | H34: =ROUNDDOWN(SUMPRODUCT(C3:C24,F3:F24),0)+#REF!+#REF! -> 

Sheet Лист1
D7: Итого на работу:
